bitfinex-derivatives/quotes_SOLF0:USTF0_20250719
["timestamp","ask_amount","ask_price","bid_price","bid_amount"]
[1752909599753,107.25,176.9,176.87,3.21]
[1752909600357,107.25,176.9,176.87,8.8597]
[1752909600555,3.31,176.89,176.87,5.6497]
[1752909600756,3.31,176.89,176.88,3.21]
[1752909602759,103.94,176.9,176.88,8.8594]
[1752909602960,107.25,176.9,176.89,3.21]
[1752909603863,103.94,176.9,176.89,3.21]
[1752909604362,107.25,176.9,176.89,3.21]
[1752909609162,3.19,176.92,176.89,3.21]
[1752909609465,103.86,176.92,176.89,3.21]
[1752909610568,107.05,176.92,176.89,3.21]
[1752909610866,107.05,176.92,176.9,5.6487]
[1752909611063,107.05,176.92,176.91,3.23]
[1752909612962,103.86,176.92,176.91,3.23]
[1752909615160,107.05,176.92,176.91,3.23]
[1752909615365,3.19,176.91,176.9,3.23]
[1752909618669,103.86,176.92,176.9,8.8788]
[1752909618867,103.86,176.92,176.91,3.23]
[1752909620069,107.05,176.92,176.91,3.23]
[1752909624270,3.19,176.91,176.89,3.23]
[1752909624570,3.19,176.9,176.89,3.23]
[1752909625072,4.58975532,176.9,176.89,3.23]
[1752909626973,3.19,176.9,176.89,3.23]
[1752909628973,3.19,176.91,176.89,3.23]
[1752909629568,3.19,176.91,176.89,8.8791]
[1752909629769,3.19,176.91,176.9,3.23]
[1752909631076,103.86,176.92,176.9,3.23]
[1752909631374,107.05,176.92,176.9,3.23]
[1752909632274,103.86,176.92,176.9,8.8787]
[1752909632876,103.86,176.92,176.91,3.23]
[1752909633674,107.05,176.92,176.91,3.23]
[1752909640077,103.86,176.92,176.91,8.8784]
[1752909640977,7.83422962,176.95,176.91,5.6484]
[1752909641178,3.1,176.93,176.92,3.25]
[1752909642374,6.32635966,176.96,176.92,3.25]
[1752909642578,3.1,176.96,176.92,3.25]
[1752909642781,103.74,176.96,176.92,3.25]
[1752909642978,103.74,176.96,176.94,5.6473]
[1752909643179,103.74,176.96,176.95,3.25]
[1752909643582,103.74,176.96,176.95,8.8972]
[1752909644379,111.65237887,176.97,176.96,8.8968]
[1752909645486,3.1,177.0,176.98,3.25]
[1752909645790,106.82,177.0,176.98,3.25]
[1752909645992,3.1,177.02,176.98,3.25]
[1752909646285,106.82,177.02,176.98,3.25]
[1752909646486,106.82,177.02,177.0,5.6455]
[1752909646687,106.82,177.02,177.01,3.25]
[1752909647182,106.82,177.02,177.0,5.6455]
[1752909647183,2.18692962,177.06,177.02,5.6449]
[1752909647385,106.82,177.05,177.03,3.25]
[1752909650478,103.72,177.05,176.93,4.75201957]
[1752909650679,3.1,177.04,176.98,2.18692962]
[1752909650880,105.90692962,177.05,176.99,3.25]
[1752909651285,109.00692962,177.05,176.99,3.25]
[1752909651788,106.82,177.05,177.02,5.6448]
[1752909651996,106.82,177.05,177.03,3.25]
[1752909652695,103.72,177.05,177.03,3.25]
[1752909652897,3.1,177.04,176.98,2.18692962]
[1752909653398,3.1,177.04,177.01,3.25]
[1752909656297,103.72,177.05,177.01,5.6452]
[1752909656496,106.82,177.05,177.02,3.25]
[1752909656798,3.1,177.04,177.02,3.25]
[1752909659096,106.82,177.05,177.02,8.8949]
[1752909659301,103.72,177.05,177.02,5.6449]
[1752909659501,103.72,177.05,177.03,3.25]
[1752909660005,106.82,177.05,177.03,3.25]
[1752909661005,3.1,177.04,176.92,161.34118217]
[1752909661197,3.1,177.04,177.01,1.39724018]
[1752909661803,3.1,177.04,177.02,3.25]
[1752909662400,4.49724018,177.04,177.02,3.25]
[1752909663303,3.1,177.04,177.02,3.25]
[1752909663505,108.21724018,177.05,177.02,3.25]
[1752909664410,105.11724018,177.05,177.02,3.25]
[1752909664607,3.1,177.04,177.02,3.25]
[1752909664804,3.1,177.02,176.93,3.25]
[1752909665004,3.1,177.02,177.0,3.31]
[1752909665506,3.1,177.01,177.0,3.31]
[1752909668211,4.49724018,177.01,177.0,3.31]
[1752909668510,3.1,177.0,176.99,3.31]
[1752909668707,4.49724018,177.0,176.99,3.31]
[1752909670217,1.39724018,177.01,176.99,3.31]
[1752909670609,4.49724018,177.01,176.99,3.31]
[1752909671516,1.39724018,177.01,176.97,7.04364018]
[1752909671711,3.1,177.0,176.97,7.04364018]
[1752909671911,4.49724018,177.0,176.97,7.04364018]
[1752909672109,3.1,176.99,176.98,3.31]
[1752909673513,4.49724018,177.0,176.98,3.31]
[1752909674011,3.1,177.02,176.98,3.31]
[1752909674214,4.49724018,177.04,177.01,1.39724018]
[1752909674408,4.49724018,177.04,177.02,3.31]
[1752909674805,1.39724018,177.03,177.02,3.31]
[1752909675015,4.49724018,177.03,177.02,3.31]
[1752909675316,1.39724018,177.03,177.02,3.31]
[1752909676309,3.1,177.02,176.99,3.31]
[1752909676512,4.49724018,177.01,177.0,3.31]
[1752909676909,2.18444557,177.02,176.98,3.31]
[1752909677310,3.1,176.99,176.98,3.31]
[1752909677510,3.1,177.01,176.99,3.31]
[1752909678311,5.28444557,177.0,176.97,3.31]
[1752909678515,3.1,176.99,176.98,3.31]
[1752909679817,3.1,176.99,176.93,2.18444557]
[1752909679818,3.1,176.99,176.93,3.31]
[1752909680015,3.1,176.97,176.93,3.31]
[1752909680215,3.1,176.96,176.93,3.31]
[1752909680613,3.1,176.96,176.94,3.31]
[1752909680812,3.1,176.95,176.92,161.34118217]
[1752909681010,3.1,176.95,176.94,5.6478]
[1752909681210,3.1,176.97,176.94,5.6478]
[1752909681413,3.1,176.97,176.96,3.31]
[1752909682215,3.1,176.99,176.96,3.31]
[1752909683617,3.1,176.99,176.96,8.9571]
[1752909683823,3.1,176.99,176.97,3.31]
[1752909685711,3.1,176.99,176.92,161.34118217]
[1752909685916,3.1,176.97,176.95,3.31]
[1752909686319,3.1,176.96,176.95,3.31]
[1752909687616,3.1,177.02,176.96,3.31]
[1752909687822,5.28444557,177.01,176.96,3.31]
[1752909688013,3.1,177.0,176.96,3.31]
[1752909688218,3.1,177.0,176.97,3.31]
[1752909688521,3.1,176.99,176.97,3.31]
[1752909691424,10.93004557,177.01,176.97,3.31]
[1752909691625,3.1,177.0,176.97,3.31]
[1752909692327,2.18444557,177.02,176.99,3.31]
[1752909692526,3.1,177.01,176.99,3.31]
[1752909696632,2.18444557,177.02,176.99,3.31]
[1752909696828,2.18444557,177.02,176.92,4.75201957]
[1752909697127,3.1,177.01,176.96,3.06]
[1752909697329,2.18444557,177.0,176.94,2.18444557]
[1752909697631,2.18444557,177.0,176.96,3.06]
[1752909697632,3.1,176.98,176.96,3.06]
[1752909699426,10.93034557,177.0,176.97,3.06]
[1752909699634,3.1,176.99,176.97,3.06]
[1752909699931,3.1,176.99,176.98,3.06]
[1752909703031,4.49819612,176.99,176.98,3.06]
[1752909710839,1.39819612,176.99,176.98,3.06]
[1752909711440,4.49819612,176.99,176.98,3.06]
[1752909712045,1.39819612,176.99,176.98,3.06]
[1752909712436,1.39819612,176.99,176.98,8.7065]
[1752909712638,1.39819612,177.01,176.99,3.06]
[1752909713841,4.49819612,177.01,176.99,3.06]
[1752909715641,1.39819612,177.01,176.99,3.06]
[1752909715846,4.49819612,177.0,176.99,3.06]
[1752909718347,4.49819612,177.0,176.97,5.6467]
[1752909718549,4.49819612,176.99,176.98,3.06]
[1752909720948,4.49819612,177.0,176.99,3.06]
[1752909721640,1.39819612,177.0,176.99,3.06]
[1752909722751,4.49819612,177.01,176.99,3.06]
[1752909724149,3.1,177.02,177.0,3.06]
[1752909724350,1.39819612,177.01,177.0,3.06]
[1752909725950,4.68819612,177.03,177.0,4.45819612]
[1752909726140,4.68819612,177.03,177.0,1.39819612]
[1752909726345,1.39819612,177.03,177.01,3.21]
[1752909726850,3.29,177.04,177.01,1.39819612]
[1752909727151,3.29,177.04,177.02,3.21]
[1752909727554,4.68819612,177.05,177.02,8.8547]
[1752909727852,4.68819612,177.05,177.03,3.21]
[1752909728453,1.39819612,177.04,177.03,3.21]
[1752909729054,4.68819612,177.05,177.03,3.21]
[1752909729251,1.39819612,177.05,177.03,3.21]
[1752909729557,4.68819612,177.05,177.03,3.21]
[1752909731359,4.68819612,177.05,177.04,3.21]
[1752909731560,3.29,177.05,177.04,3.21]
[1752909731856,4.68819612,177.05,177.04,3.21]
[1752909732559,1.39819612,177.05,177.0,1.39819612]
[1752909732860,1.39819612,177.03,177.01,3.21]
[1752909733052,1.39819612,177.02,176.95,4.75201957]
[1752909733263,4.68819612,177.0,176.96,1.39819612]
[1752909733564,3.29,176.99,176.97,3.21]
[1752909733856,1.39819612,177.0,176.99,3.21]
[1752909734061,4.68819612,177.0,176.99,3.21]
[1752909734462,4.68819612,177.02,177.0,3.21]
[1752909734956,4.68819612,177.02,177.0,5.6455]
[1752909735167,1.39819612,177.03,177.0,3.21]
[1752909735362,1.39819612,177.03,177.0,1.39819612]
[1752909735562,1.39819612,177.03,177.01,5.645]
[1752909735762,1.39819612,177.03,177.02,3.21]
[1752909736157,4.68819612,177.03,177.02,3.21]
[1752909736457,1.39819612,177.03,177.02,3.21]
[1752909737962,1.39819612,177.04,177.03,3.21]
[1752909738164,1.39819612,177.05,177.03,3.21]
[1752909738356,3.29,177.06,177.03,3.21]
[1752909738563,1.39819612,177.05,177.03,3.21]
[1752909738763,1.39819612,177.05,177.03,5.6444]
[1752909739064,1.39819612,177.05,177.04,3.21]
[1752909740168,4.68819612,177.05,177.04,3.21]
[1752909740668,3.29,177.04,176.96,4.75201957]
[1752909740866,4.68819612,177.04,177.01,3.21]
[1752909741161,3.29,177.03,177.01,3.21]
[1752909741870,3.29,177.03,177.01,8.855]
[1752909742059,3.29,177.03,177.02,3.21]
[1752909742659,3.29,177.03,177.02,8.855]
[1752909744667,3.29,177.03,177.02,3.21]
[1752909744867,1.39819612,177.03,177.01,8.8552]
[1752909745069,3.29,177.02,177.01,8.8552]
[1752909745270,4.68819612,177.02,177.01,3.21]
[1752909745870,4.68819612,177.02,176.99,8.8559]
[1752909746069,4.68819612,177.01,177.0,3.21]
[1752909746669,4.68819612,177.01,177.0,8.8556]
[1752909747063,4.68819612,177.01,177.0,3.21]
[1752909747270,4.68819612,177.01,177.0,8.8556]
[1752909749172,4.68819612,177.01,177.0,3.21]
[1752909755474,3.25,177.0,176.97,3.01]
[1752909755673,4.64819612,176.99,176.97,3.01]
[1752909756572,1.39819612,176.99,176.97,3.01]
[1752909757177,4.64819612,176.99,176.97,3.01]
[1752909757473,4.64819612,176.99,176.98,3.01]
[1752909757776,1.39819612,176.99,176.98,3.01]
[1752909759774,4.64819612,176.99,176.98,3.01]
[1752909760179,3.25,176.99,176.98,3.01]
[1752909760378,4.64819612,176.99,176.98,3.01]
[1752909760579,1.39819612,176.99,176.98,3.01]
[1752909765978,5.6447,177.03,176.98,3.01]
[1752909766280,1.39819612,177.0,176.98,3.01]
[1752909766673,1.39819612,177.0,176.98,8.6562]
[1752909766879,1.39819612,177.0,176.99,3.01]
[1752909767077,1.39819612,177.02,176.99,4.40819612]
[1752909767379,1.39819612,177.02,176.99,10.05389612]
[1752909767579,1.39819612,177.02,177.0,3.01]
[1752909769377,4.64819612,177.02,177.0,3.01]
[1752909769779,3.25,177.02,177.0,3.01]
[1752909770680,3.25,177.02,177.01,3.01]
[1752909770876,1.39819612,177.03,177.01,3.01]
[1752909771082,3.25,177.03,177.02,3.01]
[1752909771282,4.64819612,177.03,177.02,3.01]
[1752909772083,3.25,177.03,177.02,3.01]
[1752909772282,4.64819612,177.03,177.02,3.01]
[1752909773384,1.39819612,177.03,177.02,3.01]
[1752909773983,4.64819612,177.03,177.02,3.01]
[1752909778491,4.66497751,177.03,177.02,3.01]
[1752909779491,1.41497751,177.03,177.02,3.01]
[1752909781092,109.68635966,177.08,177.01,5.6453]
[1752909781093,4.66497751,177.06,177.04,3.01]
[1752909781282,3.25,177.06,177.04,3.01]
[1752909781586,4.66497751,177.07,177.05,5.644]
[1752909781780,4.66497751,177.07,177.06,3.01]
[1752909781985,4.66497751,177.07,176.98,4.74271062]
[1752909782185,3.25,177.06,177.05,3.01]
[1752909782386,4.66497751,177.07,177.05,3.01]
[1752909782580,103.32,177.1,177.05,3.01]
[1752909782788,3.25,177.09,177.05,3.01]
[1752909782991,4.66497751,177.09,177.05,4.42497751]
[1752909783191,4.66497751,177.09,177.08,3.01]
[1752909785592,3.07,177.08,177.06,3.02]
[1752909785793,1.41497751,177.07,177.06,3.02]
[1752909785986,4.48497751,177.07,177.06,3.02]
[1752909791194,1.41497751,177.07,177.04,3.02]
[1752909791398,4.48497751,177.05,177.04,3.02]
[1752909793798,3.07,177.05,177.04,3.02]
[1752909794397,4.48497751,177.06,177.04,3.02]
[1752909797797,4.48497751,177.06,177.04,5.6443]
[1752909797998,4.48497751,177.06,177.05,3.02]
[1752909798294,1.41497751,177.06,177.05,3.02]
[1752909798499,1.41497751,177.07,177.05,5.644]
[1752909798699,1.41497751,177.07,177.06,3.02]
[1752909798895,1.41497751,177.08,177.06,3.02]
[1752909799101,3.07,177.09,177.07,5.6434]
[1752909799306,1.41497751,177.08,177.07,5.6434]
[1752909799803,1.41497751,177.08,177.07,8.6634]
[1752909800712,4.48497751,177.09,177.08,3.02]
[1752909803907,3.07,177.09,177.08,3.02]
[1752909804208,4.48497751,177.09,177.08,3.02]
[1752909804908,3.07,177.08,177.07,3.02]
[1752909805104,4.48497751,177.08,177.07,3.02]
[1752909806109,3.07,177.07,177.05,8.664]
[1752909806308,3.07,177.06,177.05,8.664]
[1752909806509,4.48497751,177.06,177.05,8.664]
[1752909806903,1.41497751,177.06,177.05,8.664]
[1752909808108,1.41497751,177.07,177.05,5.644]
[1752909808309,1.41497751,177.07,177.06,3.02]
[1752909809113,1.41497751,177.08,177.06,3.02]
[1752909809305,4.48497751,177.08,177.06,3.02]
[1752909812010,1.41497751,177.07,177.06,3.02]
[1752909812408,4.48497751,177.08,177.06,3.02]
[1752909812908,1.41497751,177.08,177.06,3.02]
[1752909813505,4.48497751,177.08,177.06,3.02]
[1752909815009,1.41497751,177.07,177.06,3.02]
[1752909815714,1.41497751,177.07,177.06,8.6637]
[1752909815906,1.41497751,177.08,177.07,3.12]
[1752909816608,4.68497751,177.09,177.07,8.7634]
[1752909816811,4.68497751,177.09,177.08,3.12]
[1752909826116,3.27,177.09,177.08,3.12]
[1752909826319,4.68497751,177.09,177.08,3.12]
[1752909827814,6.32635966,177.13,177.08,3.12]
[1752909828012,4.68497751,177.12,177.08,3.12]
[1752909828315,9.59635966,177.14,177.08,4.53497751]
[1752909828510,1.41497751,177.12,177.09,3.12]
[1752909829118,1.41497751,177.12,177.1,5.6422]
[1752909829421,1.41497751,177.12,177.11,3.12]
[1752909829921,4.68497751,177.12,177.11,3.12]
[1752909830218,3.27,177.12,177.11,3.12]
[1752909830424,4.68497751,177.12,177.11,3.12]
[1752909830718,1.41497751,177.12,177.11,3.12]
[1752909831723,1.41497751,177.14,177.12,3.12]
[1752909832719,104.61497751,177.15,177.12,3.12]
[1752909833115,1.41497751,177.16,177.13,8.7612]
[1752909833316,1.41497751,177.16,177.13,7.05617751]
[1752909833517,124.83271883,177.17,177.14,3.12]
[1752909833715,121.56271883,177.17,177.14,3.12]
[1752909833915,121.56271883,177.17,177.14,4.53497751]
[1752909834116,121.56271883,177.17,177.15,3.12]
[1752909834622,121.56271883,177.17,177.15,8.7606]
[1752909834823,122.97769634,177.17,177.15,5.6406]
[1752909835116,1.41497751,177.17,177.16,3.12]
[1752909835322,107.86497751,177.18,177.16,8.7605]
[1752909835521,107.86497751,177.18,177.17,3.12]
[1752909836415,104.59497751,177.18,177.17,3.12]
[1752909838424,1.41497751,177.18,177.17,3.12]
[1752909840621,1.41497751,177.18,177.17,8.7602]
[1752909841017,4.68497751,177.18,177.17,3.12]
[1752909841221,1.41497751,177.18,177.17,3.12]
[1752909841926,1.41497751,177.18,177.17,8.7602]
[1752909843122,4.68497751,177.19,177.17,5.6402]
[1752909843329,4.68497751,177.19,177.18,3.12]
[1752909848126,1.41497751,177.19,177.18,3.12]
[1752909848525,4.43497751,177.19,177.18,3.12]
[1752909853828,1.41497751,177.19,177.18,3.12]
[1752909854040,104.57497751,177.2,177.18,3.12]
[1752909854330,1.41497751,177.2,177.18,5.6399]
[1752909854637,4.43497751,177.2,177.19,3.16]
[1752909854832,4.43497751,177.22,177.21,3.16]
[1752909855130,1.41497751,177.22,177.21,3.16]
[1752909855336,1.41497751,177.22,177.21,8.799]
[1752909856037,1.41497751,177.22,177.21,3.16]
[1752909856237,106.1,177.23,177.21,3.16]
[1752909856433,1.41497751,177.22,177.21,3.16]
[1752909857240,106.1,177.23,177.21,3.16]
[1752909857241,107.51497751,177.23,177.21,3.16]
[1752909858441,4.43497751,177.23,177.21,3.16]
[1752909859135,3.02,177.23,177.21,3.16]
[1752909859335,4.43497751,177.23,177.21,3.16]
[1752909860238,1.41497751,177.23,177.21,8.7989]
[1752909861037,1.41497751,177.23,177.21,5.6389]
[1752909861242,4.43497751,177.23,177.22,3.16]
[1752909862943,3.02,177.22,177.2,3.16]
[1752909863142,4.43497751,177.22,177.2,3.16]
[1752909863548,3.02,177.22,177.2,3.16]
[1752909863750,4.43497751,177.22,177.2,5.6392]
[1752909864047,3.02,177.22,177.21,3.16]
[1752909869652,4.43497751,177.23,177.21,3.16]
[1752909869851,1.41497751,177.22,177.21,3.16]
[1752909870254,3.02,177.22,177.21,3.16]
[1752909870454,4.43497751,177.22,177.21,3.16]
[1752909871356,1.41497751,177.22,177.21,3.16]
[1752909871557,4.43497751,177.23,177.21,3.16]
[1752909871749,3.02,177.23,177.21,3.16]
[1752909872257,4.43497751,177.23,177.21,3.16]
[1752909875756,4.56497751,177.22,177.21,3.16]
[1752909877860,3.15,177.21,177.15,3.2]
[1752909878062,4.56497751,177.16,177.15,3.2]
[1752909879158,6.32635966,177.23,177.15,3.2]
[1752909879356,3.15,177.29,177.23,3.2]
[1752909879556,3.15,177.28,177.27,3.2]
[1752909879754,3.15,177.32,177.27,3.2]
[1752909879960,4.56497751,177.32,177.29,3.2]
[1752909880161,3.15,177.31,177.29,3.2]
[1752909880961,3.15,177.31,177.28,3.2]
[1752909881162,105.20412812,177.33,177.28,3.2]
[1752909881363,3.15,177.3,177.28,3.2]
[1752909883163,3.15,177.3,177.29,3.2]
[1752909885664,3.15,177.31,177.29,3.2]
[1752909889462,106.13,177.33,177.29,8.8363]
[1752909889669,3.15,177.33,177.3,3.2]
[1752909891668,8.7843,177.36,177.31,3.2]
[1752909891860,3.15,177.35,177.31,3.2]
[1752909892572,3.15,177.35,177.31,8.8355]
[1752909892771,3.15,177.35,177.32,3.2]
[1752909900368,3.15,177.34,177.32,3.2]
[1752909900565,3.15,177.35,177.32,3.2]
[1752909900970,3.15,177.35,177.32,4.60985926]
[1752909901170,3.15,177.35,177.33,3.2]
[1752909902069,3.15,177.34,177.33,3.2]
[1752909904365,12.65271933,177.52,177.36,5.6342]
[1752909904571,1.40985926,177.39,177.31,3.2]
[1752909904771,3.15,177.38,177.35,3.2]
[1752909905271,3.2,177.37,177.35,3.2]
[1752909906165,3.2,177.38,177.35,3.2]
[1752909907267,3.2,177.37,177.35,3.2]
[1752909908765,102.9,177.4,177.35,3.2]
[1752909908968,4.60985926,177.39,177.35,3.2]
[1752909909168,4.60985926,177.39,177.35,5.6345]
[1752909909370,4.60985926,177.39,177.36,3.04]
[1752909909571,3.2,177.38,177.36,3.04]
[1752909911774,3.2,177.37,177.33,5.6351]
[1752909911974,3.2,177.37,177.33,1.40985926]
[1752909912175,3.2,177.37,177.35,3.04]
[1752909912674,3.2,177.37,177.34,3.04]
[1752909913174,4.60985926,177.37,177.34,3.04]
[1752909913874,3.2,177.36,177.34,3.04]
[1752909917577,7.04405926,177.37,177.34,3.04]
[1752909917874,3.2,177.35,177.34,3.04]
[1752909918774,3.2,177.36,177.34,3.04]
[1752909922283,1.40985926,177.37,177.34,3.04]
[1752909922480,3.2,177.36,177.34,3.04]
[1752909926686,3.2,177.39,177.34,5.6349]
[1752909926883,1.40985926,177.38,177.35,3.04]
[1752909927083,4.60985926,177.38,177.35,3.04]
[1752909927486,3.2,177.37,177.35,3.04]
[1752909927788,8.8341,177.37,177.31,3.04]
[1752909927984,3.2,177.36,177.34,3.04]
[1752909928487,3.2,177.36,177.35,3.04]
[1752909930287,3.2,177.35,177.31,3.04]
[1752909930488,4.60985926,177.32,177.31,3.04]
[1752909930788,3.2,177.31,177.29,3.04]
[1752909930979,3.2,177.3,177.29,3.04]
[1752909932490,4.60985926,177.3,177.29,3.04]
[1752909932693,3.2,177.29,177.28,3.04]
[1752909933289,3.2,177.29,177.27,3.04]
[1752909933489,4.60985926,177.28,177.27,3.04]
[1752909936001,3.26,177.27,177.21,3.3]
[1752909936195,1.40985926,177.24,177.19,3.3]
[1752909936496,1.40985926,177.22,177.19,3.3]
[1752909937998,4.66985926,177.22,177.19,3.3]
[1752909938900,3.26,177.22,177.19,3.3]
[1752909942001,209.01534914,177.29,177.19,3.3]
[1752909942002,5.46638183,177.25,177.19,3.3]
[1752909942304,2.20638183,177.27,177.19,3.3]
[1752909942506,5.46638183,177.27,177.19,3.3]
[1752909942709,8.8975,177.26,177.21,5.6388]
[1752909942900,3.26,177.25,177.22,3.3]
[1752909943307,5.6382,177.24,177.19,5.6396]
[1752909943607,3.26,177.23,177.21,3.3]
[1752909943802,3.26,177.21,177.17,3.3]
[1752909944503,3.26,177.2,177.17,3.3]
[1752909945403,3.26,177.2,177.18,3.3]
[1752909946109,5.6385,177.23,177.18,5.6398]
[1752909946407,3.26,177.23,177.19,3.3]
[1752909946809,3.26,177.23,177.2,3.3]
[1752909947614,3.26,177.22,177.2,3.3]
[1752909947808,5.6385,177.23,177.2,3.3]
[1752909947809,3.26,177.23,177.2,3.3]
[1752909949412,3.26,177.23,177.18,3.3]
[1752909949712,3.26,177.21,177.17,3.3]
[1752909949914,3.26,177.21,177.15,3.3]
[1752909950915,3.26,177.2,177.17,3.3]
[1752909951212,3.26,177.21,177.17,3.3]
[1752909951413,2.20638183,177.22,177.17,3.3]
[1752909951712,3.26,177.2,177.17,3.3]
[1752909952707,3.26,177.2,177.15,2.20638183]
[1752909952911,3.26,177.2,177.18,3.3]
[1752909955610,3.26,177.19,177.16,3.3]
[1752909956007,3.26,177.19,177.17,3.3]
[1752909956414,3.26,177.18,177.13,2.20638183]
[1752909956816,3.26,177.18,177.15,5.6409]
[1752909957015,3.26,177.18,177.16,3.3]
[1752909957820,3.26,177.19,177.17,3.3]
[1752909962219,3.26,177.18,177.15,5.6409]
[1752909962519,3.26,177.18,177.12,163.70776536]
[1752909962717,3.26,177.17,177.11,5.6422]
[1752909962918,3.26,177.15,177.11,5.6422]
[1752909963222,2.20638183,177.16,177.13,3.3]
[1752909963420,3.26,177.14,177.13,3.3]
[1752909964319,3.26,177.14,177.11,3.3]
[1752909964514,3.26,177.14,177.12,3.3]
[1752909964715,3.26,177.14,177.09,5.6428]
[1752909964920,3.26,177.14,177.11,3.3]
[1752909965127,3.26,177.14,177.1,3.21]
[1752909965316,5.6412,177.15,177.1,3.21]
[1752909965522,3.33,177.14,177.1,3.21]
[1752909967023,3.33,177.14,177.1,5.6425]
[1752909967324,7.84708183,177.16,177.11,3.21]
[1752909967523,3.33,177.16,177.11,8.8521]
[1752909967720,3.33,177.16,177.12,3.21]
[1752909967921,2.20638183,177.15,177.12,3.21]
[1752909968225,3.33,177.14,177.12,3.21]
[1752909969223,2.20638183,177.13,177.04,105.12638183]
[1752909969426,3.33,177.12,177.05,3.21]
[1752909970322,3.33,177.12,177.08,3.21]
[1752909971821,3.33,177.12,177.09,3.21]
[1752909972624,3.33,177.12,177.1,3.21]
[1752909972822,3.33,177.11,177.08,5.6431]
[1752909973028,5.6413,177.14,177.09,5.6428]
[1752909973229,3.33,177.13,177.09,5.6428]
[1752909973428,3.33,177.13,177.1,3.21]
[1752909974025,5.53638183,177.15,177.12,3.21]
[1752909974324,3.33,177.14,177.12,3.21]
[1752909975726,3.33,177.15,177.12,3.21]
[1752909976037,3.33,177.15,177.13,3.21]
[1752909976221,3.33,177.16,177.13,3.21]
[1752909977733,3.33,177.16,177.13,8.8515]
[1752909977926,3.33,177.16,177.14,3.21]
[1752909978127,3.33,177.17,177.14,3.21]
[1752909978629,3.33,177.16,177.14,3.21]
[1752909980231,3.33,177.18,177.14,3.21]
[1752909980925,3.33,177.18,177.15,5.6407]
[1752909981132,3.33,177.18,177.12,2.20638183]
[1752909981133,3.33,177.2,177.16,3.21]
[1752909981335,3.33,177.19,177.16,3.21]
[1752909981529,3.33,177.19,177.16,8.8505]
[1752909981833,3.33,177.19,177.17,3.21]
[1752909982031,3.33,177.2,177.17,3.21]
[1752909982425,3.33,177.2,177.17,5.6403]
[1752909982624,3.33,177.2,177.18,3.21]
[1752909983831,3.33,177.22,177.19,3.21]
[1752909984935,3.33,177.22,177.2,3.21]
[1752909988738,110.78388183,177.26,177.21,3.21]
[1752909988944,3.33,177.23,177.21,3.21]
[1752909989438,3.33,177.25,177.22,3.21]
[1752909990337,3.33,177.24,177.22,3.21]
[1752909990641,2.20638183,177.28,177.23,3.21]
[1752909990642,3.33,177.25,177.23,3.21]